bitfinex/quotes_ETHUSD_20240731
["timestamp","ask_amount","ask_price","bid_price","bid_amount"]
[1722430757537,2.4537,3324.2,3323.7,1.112]
[1722430757761,2.4537,3324.2,3323.8,0.06038598]
[1722430758022,2.4537,3324.2,3323.7,1.112]
[1722430758265,3.21971033,3324.2,3323.8,0.06038598]
[1722430758563,3.21971033,3324.2,3323.7,1.112]
[1722430758976,3.21971033,3324.2,3323.8,0.06038598]
[1722430759340,3.21971033,3324.2,3323.7,1.112]
[1722430759975,3.21971033,3324.2,3323.8,0.05956416]
[1722430760128,0.62278703,3324.1,3323.8,0.05956416]
[1722430760336,0.62278703,3324.1,3323.7,1.112]
[1722430760558,0.62278703,3324.1,3323.9,0.05956416]
[1722430760762,0.62278703,3324.1,3323.7,1.112]
[1722430761276,0.62278703,3324.1,3323.8,0.05956416]
[1722430761500,0.62278703,3324.1,3323.7,1.112]
[1722430761657,0.62278703,3324.1,3323.9,0.05956416]
[1722430761834,0.62278703,3324.1,3323.7,1.112]
[1722430762035,3.63113703,3324.1,3324.0,0.05956416]
[1722430762230,3.00865,3323.8,3323.1,2.3593]
[1722430762433,3.00911,3323.3,3322.9,7.28]
[1722430763031,6.01846,3323.1,3323.0,0.05557873]
[1722430763237,3.00939,3323.0,3322.3,1.112]
[1722430763484,1.112,3323.2,3322.3,1.112]
[1722430763683,3.55923,3323.1,3322.3,1.112]
[1722430763885,3.00946,3322.9,3322.3,1.112]
[1722430764085,3.00966,3322.7,3322.3,1.112]
[1722430764239,6.01934,3322.7,3322.1,1.112]
[1722430764438,2.3728,3322.6,3322.4,0.05557873]
[1722430764677,6.56956,3322.5,3322.4,0.05557873]
[1722430764878,3.01001,3322.3,3321.8,1.112]
[1722430765177,4.454016,3322.5,3322.4,0.05557873]
[1722430765339,1.444236,3322.5,3321.6,3.01057]
[1722430765536,10.41951,3322.8,3321.7,3.01048]
[1722430765736,10.41951,3322.8,3321.8,3.01041]
[1722430765978,10.41951,3322.8,3321.8,3.06598873]
[1722430766143,3.0096,3322.7,3321.9,2.3403]
[1722430766350,3.00972,3322.6,3321.8,0.05557873]
[1722430766535,3.00972,3322.6,3321.7,2.668]
[1722430766741,3.00972,3322.6,3321.9,0.05557873]
[1722430766942,3.00972,3322.6,3321.7,3.235856]
[1722430766943,3.00988,3322.4,3321.7,0.567856]
[1722430767192,3.00996,3322.3,3321.3,5.67881]
[1722430767368,3.00996,3322.3,3321.8,0.05557873]
[1722430767690,3.01019,3322.1,3321.3,2.668]
[1722430767887,3.01019,3322.1,3321.9,0.05557873]
[1722430768177,3.01019,3322.1,3321.2,2.9403]
[1722430768478,3.01001,3322.3,3321.2,7.274384]
[1722430768683,0.55,3322.2,3321.3,0.05557873]
[1722430769588,0.55,3322.2,3321.3,3.06640873]
[1722430770079,3.0098,3322.5,3321.4,3.01076]
[1722430770311,0.55,3322.4,3321.4,3.01076]
[1722430770488,3.00998,3322.3,3321.5,0.87451687]
[1722430770684,3.01008,3322.2,3321.5,0.05557873]
[1722430771180,3.01008,3322.2,3321.6,0.05557873]
[1722430771594,3.01008,3322.2,3321.3,5.67884]
[1722430771758,3.01008,3322.2,3321.7,0.05607825]
[1722430771956,3.01008,3322.2,3321.3,5.67884]
[1722430772169,3.01008,3322.2,3321.8,0.05607825]
[1722430772370,3.01008,3322.2,3321.4,0.9942274]
[1722430772570,3.01008,3322.2,3321.9,0.05607825]
[1722430772862,3.01008,3322.2,3321.3,2.668]
[1722430772863,3.01019,3322.1,3321.3,2.668]
[1722430773072,3.01019,3322.1,3321.4,0.05614027]
[1722430773598,3.01014,3322.1,3321.4,0.05614027]
[1722430774178,3.01008,3322.2,3321.4,0.7548977]
[1722430774502,3.0102,3322.1,3321.4,0.7548977]
[1722430776766,3.01024,3322.0,3321.4,0.7548977]
[1722430778305,6.02055,3322.0,3321.4,0.7548977]
[1722430778485,3.01032,3321.9,3321.4,0.7548977]
[1722430779219,3.01032,3321.9,3321.4,0.05614027]
[1722430779382,3.0101,3322.2,3321.4,0.05614027]
[1722430779586,3.0101,3322.2,3321.2,2.9403]
[1722430779797,3.01023,3322.0,3321.5,0.05674923]
[1722430780014,3.01023,3322.0,3321.2,2.9403]
[1722430780217,3.01023,3322.0,3321.6,0.05674923]
[1722430780421,3.01023,3322.0,3321.3,1.323134]
[1722430780620,3.01023,3322.0,3321.7,0.05674923]
[1722430780917,3.01023,3322.0,3321.3,1.323134]
[1722430781492,3.01023,3322.0,3321.4,0.05674923]
[1722430781702,3.01023,3322.0,3321.4,0.48876755]
[1722430782303,3.0101,3322.2,3321.4,0.48876755]
[1722430783419,3.00996,3322.3,3321.4,3.49953755]
[1722430783726,3.00989,3322.4,3321.5,3.01068]
[1722430783940,3.00984,3322.5,3321.6,3.47745437]
[1722430784103,3.0,3322.7,3321.7,5.39503]
[1722430784284,3.0,3322.7,3321.8,0.05481015]
[1722430784624,6.0096,3322.7,3321.8,0.05481015]
[1722430784834,6.0096,3322.7,3321.8,0.93584164]
[1722430785012,6.0096,3322.7,3321.8,3.94625164]
[1722430785216,3.0096,3322.7,3321.8,3.94625164]
[1722430785383,7.41,3322.8,3322.0,3.0102]
[1722430785586,7.41,3322.8,3322.1,0.06019594]
[1722430785815,7.41,3322.8,3322.2,0.30703559]
[1722430786014,7.41,3322.8,3322.2,0.36184574]
[1722430786225,3.00965,3322.7,3322.2,0.05481015]
[1722430786384,5.20646786,3322.7,3322.2,0.05481015]
[1722430786703,3.00965,3322.7,3322.3,0.05481015]
[1722430786891,3.00965,3322.7,3321.8,0.88103149]
[1722430787090,3.00965,3322.7,3321.9,0.05481015]
[1722430787091,2.19681786,3322.7,3321.9,0.05481015]
[1722430787737,3.00974,3322.6,3321.9,0.95469831]
[1722430787915,2.19681786,3322.7,3321.9,1.014899]
[1722430788116,12.61632786,3322.8,3321.9,1.014899]
[1722430788301,3.00964,3322.7,3321.9,0.95469831]
[1722430788629,3.01002,3322.3,3321.9,0.05481015]
[1722430788999,3.01002,3322.3,3321.4,37.3842]
[1722430789233,3.01002,3322.3,3321.8,1.112]
[1722430789744,3.01002,3322.3,3321.9,0.05481015]
[1722430790833,5.20658832,3322.5,3322.0,1.112]
[1722430791240,5.20658832,3322.5,3321.6,3.01059]
[1722430791394,3.00985,3322.5,3322.1,0.05481015]
[1722430791601,5.20657832,3322.5,3321.5,3.01067]
[1722430791805,2.74673832,3322.6,3321.5,3.01063]
[1722430792005,5.20651832,3322.5,3321.6,0.05481015]
[1722430792201,3.00978,3322.5,3321.6,3.06540015]
[1722430792509,3.00978,3322.5,3321.7,0.30654002]
[1722430793013,0.55,3322.6,3322.3,0.2]
[1722430793225,3.55969,3322.6,3322.3,0.2]
[1722430793432,8.21647358,3322.7,3322.3,0.2]
[1722430793635,3.00963,3322.7,3322.3,0.2]
[1722430794204,2.19745031,3322.6,3322.3,0.2]
[1722430794444,3.53030936,3322.7,3322.3,0.2]
[1722430794445,5.20708031,3322.7,3322.3,0.2]
[1722430795371,3.00963,3322.7,3322.3,0.2]
[1722430795652,2.19742829,3322.6,3322.3,0.2]
[1722430795822,2.19742829,3322.8,3322.3,0.2]
[1722430796147,3.00947,3322.9,3322.3,0.2]
[1722430796148,5.20689829,3322.9,3322.4,0.05470072]
[1722430796312,5.20689829,3322.9,3322.3,0.2]
[1722430796313,5.95510812,3322.9,3322.3,0.2]
[1722430796674,5.20706829,3322.7,3322.4,0.05470072]
[1722430796851,3.00964,3322.7,3322.4,0.05470072]
[1722430797054,3.00964,3322.7,3322.3,0.4]
[1722430797410,3.00964,3322.7,3322.4,0.05470072]
[1722430797613,5.8025961,3322.7,3322.4,0.05470072]
[1722430797811,5.8025961,3322.7,3322.3,0.4]
[1722430798023,3.60516781,3322.7,3322.3,0.4]
[1722430798281,3.60516781,3322.7,3322.4,0.05470072]
[1722430798416,3.00964,3322.7,3322.4,0.05470072]
[1722430798620,3.00964,3322.7,3322.3,0.4]
[1722430799168,3.00964,3322.7,3322.4,0.05470072]
[1722430799475,5.20731054,3322.7,3322.3,0.4]
[1722430799763,2.19767054,3322.5,3322.3,0.4]
[1722430800121,2.19767054,3322.4,3322.3,0.4]
[1722430800373,3.00987,3322.4,3322.3,0.4]
[1722430800668,5.80939951,3322.4,3322.3,0.4]
[1722430800832,3.611827,3322.4,3322.3,0.4]
[1722430801815,2.19757251,3322.5,3322.3,0.4]
[1722430802017,3.00982,3322.5,3322.3,0.4]
[1722430802663,2.19757251,3322.5,3322.3,0.4]
[1722430803165,2.19757251,3322.6,3322.3,0.4]
[1722430803662,3.00987,3322.4,3322.3,0.4]
[1722430803845,5.20740251,3322.5,3322.3,0.4]
[1722430804158,3.00983,3322.5,3322.3,0.4]
[1722430804681,2.19757251,3322.5,3322.3,0.4]
[1722430805086,3.00977,3322.6,3322.3,0.4]
[1722430805293,2.19897945,3322.5,3322.3,0.4]
[1722430805447,2.19897945,3322.4,3322.3,0.4]
[1722430805644,5.20875945,3322.5,3322.3,0.4]
[1722430806547,2.19897945,3322.4,3322.3,0.4]
[1722430808249,3.00955,3322.8,3322.3,0.4]
[1722430808552,2.60138223,3322.6,3322.3,0.4]
[1722430808779,5.61102223,3322.7,3322.3,0.4]
[1722430808974,2.2037295,3322.4,3322.3,0.4]
[1722430809159,2.2037295,3322.4,3322.3,1.906]
[1722430810094,2.60138223,3322.6,3322.3,1.906]
[1722430810270,5.61102223,3322.7,3322.3,1.906]
[1722430810592,2.60138223,3322.6,3322.3,1.906]
[1722430810949,2.60138223,3322.7,3322.3,1.906]
[1722430811262,2.20409979,3322.4,3322.3,1.906]
[1722430811479,2.2039996,3322.4,3322.3,1.906]
[1722430811822,2.20395679,3322.4,3322.3,1.906]
[1722430812193,2.60342396,3322.5,3322.3,1.906]
[1722430812376,2.20414192,3322.5,3322.4,2.3354]
[1722430812715,2.20414192,3322.6,3322.4,2.3354]
[1722430812915,2.20414192,3322.5,3322.4,2.3354]
[1722430813218,2.20414192,3322.5,3322.4,3.4464]
[1722430813676,2.20414192,3322.6,3322.4,3.4464]
[1722430814808,13.55211727,3323.2,3322.4,3.4464]
[1722430815004,13.55211727,3323.2,3322.5,0.06018915]
[1722430815005,2.20329778,3322.6,3322.5,0.06018915]
[1722430815204,2.20329778,3322.6,3322.4,2.3354]
[1722430815623,2.20329778,3322.6,3322.5,0.05276062]
[1722430815786,2.20329778,3322.6,3322.5,1.16376062]
[1722430816137,2.20329778,3322.6,3322.5,4.23373216]
[1722430816427,2.20329778,3323.0,3322.5,2.31226984]
[1722430816574,2.20329778,3323.0,3322.8,1.111]
[1722430816979,7.41,3323.2,3322.8,1.111]
[1722430816980,2.20329778,3323.1,3322.9,0.05267309]
[1722430817187,7.41,3323.2,3323.0,1.111]
[1722430817482,9.61101154,3323.2,3323.1,0.05254912]
[1722430817677,2.20101154,3323.2,3323.1,0.05254912]
[1722430817905,2.20101154,3323.4,3323.0,1.111]
[1722430818218,2.20101154,3323.3,3323.1,0.05254547]
[1722430818423,5.44465,3323.7,3323.1,0.05254547]
[1722430818424,2.20101154,3323.4,3323.1,0.05254547]
[1722430818627,3.00888,3323.5,3322.8,0.06018469]
[1722430818779,3.00888,3323.5,3322.3,2.2078]
[1722430818780,5.60837371,3323.5,3323.2,1.16352724]
[1722430818982,2.20061627,3323.3,3323.2,1.111]
[1722430820568,3.00929,3323.1,3322.3,1.906]
[1722430820820,2.19940372,3322.9,3322.5,1.111]
[1722430821025,2.3093,3322.8,3322.3,1.906]
[1722430821194,2.1989688,3322.6,3322.3,1.906]
[1722430821519,2.19924793,3322.9,3322.3,7.38626]
[1722430821725,2.19924793,3322.7,3322.6,1.111]
[1722430821876,2.19924793,3322.8,3322.6,1.111]
[1722430822280,2.19924793,3322.9,3322.6,1.111]
[1722430823084,2.19924793,3322.8,3322.6,1.111]
[1722430823286,2.19924793,3322.8,3322.3,1.906]
[1722430823481,5.60711162,3323.1,3322.3,1.906]
[1722430823482,2.19924793,3322.9,3322.3,5.407558]
[1722430823949,2.19924793,3322.9,3322.5,3.00976]
[1722430824094,2.19924793,3323.0,3322.8,3.0095]
[1722430824304,2.19924793,3323.2,3322.8,3.0095]
[1722430824504,9.60924793,3323.4,3322.9,0.56765]
[1722430824825,9.60919427,3323.4,3322.9,0.56765]
[1722430824983,2.19919427,3323.3,3322.9,0.56765]
[1722430825539,14.8727,3323.9,3323.0,5.48215997]
[1722430825540,2.19919427,3323.6,3323.0,5.48215997]
[1722430825714,2.19919427,3323.6,3323.1,3.00916]
[1722430825882,2.19919427,3323.6,3323.2,0.06017521]
[1722430826082,2.19919427,3323.7,3323.2,3.06931521]
[1722430826284,2.19919427,3323.7,3323.3,0.06017376]
[1722430826608,2.19919427,3323.7,3323.0,5.42202]
[1722430827581,3.00878,3323.6,3322.7,5.67658]
[1722430828038,2.19794825,3323.5,3322.7,5.67658]
[1722430828237,2.19794825,3323.6,3322.8,3.00944]
[1722430828734,2.19794825,3323.6,3322.9,3.00936]
[1722430828934,2.19794825,3323.6,3322.8,3.00944]
[1722430829093,2.19794825,3323.6,3322.9,0.567644]
[1722430829293,2.19794825,3323.6,3323.1,3.00922]
[1722430829523,2.19794825,3323.6,3323.2,3.00913]
[1722430829740,2.19781738,3323.6,3323.2,3.05957252]
[1722430830031,2.19781738,3323.7,3323.2,3.05957252]
[1722430830524,2.19781738,3323.7,3323.3,0.06017326]
[1722430830728,2.19743675,3323.6,3323.3,0.05038429]
[1722430830893,2.19743675,3323.7,3322.9,3.576994]
[1722430831096,5.20612675,3323.7,3323.4,0.05039884]
[1722430831433,2.19729145,3323.6,3322.8,3.0095]
[1722430831740,2.1971523,3323.6,3322.9,3.92841184]
[1722430832038,2.1971523,3323.7,3322.9,3.92841184]
[1722430832623,3.00852,3323.9,3322.9,3.92841184]
[1722430832828,2.19716614,3323.7,3322.9,3.92841184]
[1722430832995,2.19716614,3323.7,3323.0,0.39284118]
[1722430833200,2.19716614,3323.6,3323.0,0.39284118]
[1722430833447,2.19716614,3323.7,3323.1,0.0503042]
[1722430834386,5.20587614,3323.7,3323.1,0.0503042]
[1722430834714,5.20587614,3323.7,3323.2,0.05029693]
[1722430835030,2.19665732,3323.7,3322.9,3.00941]
[1722430835334,2.19665732,3323.8,3323.1,3.00923]
[1722430835700,2.19665732,3323.7,3323.2,0.05028237]
[1722430836438,2.19665732,3323.8,3323.2,0.05028237]
[1722430837017,2.19665732,3323.8,3323.2,5.48944593]
[1722430837225,2.19665732,3323.8,3323.2,6.30922806]
[1722430837531,2.19665732,3323.9,3323.2,6.30922806]
[1722430837837,2.19665732,3323.9,3323.2,5.42927237]
[1722430838218,2.19660786,3323.9,3323.2,5.42927237]
[1722430838704,2.19660786,3323.8,3323.2,0.05028237]
[1722430838900,2.19660786,3323.8,3323.0,3.00924]
[1722430839100,5.20530786,3323.7,3323.3,0.05026053]
[1722430839361,3.01799665,3323.7,3322.8,5.50619]
[1722430839524,2.19660786,3323.7,3323.4,0.05026053]
[1722430839690,2.19660786,3323.7,3322.9,3.00939]
[1722430839898,2.19660786,3323.7,3323.0,0.05026053]
[1722430840398,5.20529786,3323.8,3323.0,0.05026053]
[1722430840599,2.19660786,3323.7,3323.0,0.05026053]
[1722430841295,2.3267,3323.6,3323.0,0.05026053]
[1722430841505,5.60319303,3324.0,3322.7,7.28]
[1722430841506,3.00945,3322.9,3322.7,7.28]
[1722430841727,3.00945,3322.9,3322.3,1.506]
[1722430841893,3.00951,3322.8,3322.3,1.506]
[1722430842445,2.19620338,3322.9,3322.3,1.506]
[1722430842591,8.32154672,3323.0,3322.3,1.506]
[1722430842945,3.00969,3322.6,3322.3,1.506]
[1722430843151,2.19620338,3322.9,3322.3,1.506]
[1722430843552,2.19620338,3322.9,3322.4,2.3043]
[1722430843850,2.19620338,3323.0,3322.4,2.3043]
[1722430844219,2.19620338,3323.1,3322.4,7.98111]
[1722430844420,2.19620338,3323.1,3322.5,0.04902325]
[1722430844623,2.19580912,3323.1,3322.5,0.04902325]
[1722430844863,2.19580912,3323.1,3322.5,3.72648558]
[1722430845152,2.19580912,3323.1,3322.5,0.71671558]
[1722430845307,2.19580912,3323.2,3322.5,0.71671558]
[1722430845504,2.19580912,3323.2,3322.5,0.04902325]
[1722430847824,2.19653349,3323.2,3322.6,3.00964]
[1722430848272,2.19653349,3323.2,3322.7,0.04901961]
[1722430848626,2.19653349,3323.2,3322.4,7.9811]
[1722430848871,2.19653349,3323.1,3322.5,0.94871]
[1722430849170,3.00933,3323.0,3322.5,0.04901961]
[1722430849395,2.19653349,3322.9,3322.5,0.04901961]
[1722430849559,5.20586349,3323.0,3322.3,1.506]
[1722430849722,8.21526349,3323.0,3322.6,0.04901961]
[1722430849927,6.25437984,3323.0,3322.3,1.506]
[1722430850244,5.20604349,3322.8,3322.7,0.04901961]
[1722430850432,5.20604349,3322.8,3322.3,1.506]
[1722430850433,3.00951,3322.8,3322.3,1.506]
[1722430850646,3.00951,3322.8,3322.7,0.04901961]
[1722430850833,3.93589898,3322.8,3322.3,1.506]
[1722430851063,3.00951,3322.8,3322.3,1.506]
[1722430851371,2.19719306,3322.8,3322.4,0.04901961]
[1722430851541,2.19719306,3322.9,3322.4,0.04901961]
[1722430852140,2.19719306,3323.0,3322.4,0.04901961]
[1722430852332,2.19719306,3322.9,3322.4,0.04901961]
[1722430853762,2.19719306,3322.9,3322.6,2.4444]
[1722430854084,2.19719306,3323.2,3322.6,5.51424624]
[1722430854228,3.00891,3323.5,3322.7,0.04899411]
[1722430854430,10.41871,3323.7,3322.8,3.56575103]
[1722430854431,2.19868997,3323.4,3322.8,3.56575103]
[1722430854633,2.19868997,3323.3,3322.8,0.55632103]
[1722430854878,3.00888,3323.5,3322.8,0.55632103]
[1722430854879,2.19868997,3323.2,3322.8,0.55632103]
[1722430855077,2.19868997,3323.2,3322.9,0.04899411]
[1722430855281,2.19868997,3323.3,3322.9,0.04899411]
[1722430855475,2.19868997,3323.3,3322.7,3.00955]
[1722430855679,2.19868997,3323.3,3323.0,0.04893949]
[1722430855848,2.19868997,3323.2,3322.7,3.00955]
[1722430856051,2.19868997,3323.2,3323.1,0.04893949]
[1722430856360,2.59720253,3323.4,3323.1,0.04893949]
[1722430856548,2.59720253,3323.4,3322.5,3.16521196]
[1722430856549,3.00911,3323.3,3322.5,0.15550196]
[1722430856875,2.19963552,3322.9,3322.5,0.15550196]
[1722430857083,2.19963552,3322.9,3322.6,1.3112362]
[1722430857528,3.00897,3323.4,3322.6,1.3112362]
[1722430857529,3.00898,3323.4,3322.6,1.3112362]
[1722430857733,2.1998121,3322.9,3322.6,4.3209162]
[1722430857969,2.1998121,3323.2,3322.8,3.00951]
[1722430858173,2.1998121,3323.2,3322.9,0.300951]
[1722430858379,3.00883,3323.6,3322.7,0.06018315]
[1722430858380,2.1998121,3323.3,3322.7,0.06018315]
[1722430858684,2.1998121,3323.3,3322.7,3.00955]
[1722430859164,2.1998121,3323.2,3322.7,3.00955]
[1722430859334,2.1998121,3323.2,3322.8,0.04893949]
[1722430859536,2.1998121,3323.3,3322.8,0.48591206]
[1722430859836,2.1998121,3323.3,3322.8,0.04893949]
[1722430860175,2.1998121,3323.3,3322.7,3.00959]
[1722430860362,2.1998121,3323.2,3322.9,0.04893949]
[1722430860563,2.1998121,3323.2,3322.7,3.00959]
[1722430860810,6.01769,3323.6,3323.0,0.04893949]
[1722430861091,2.20083685,3323.2,3322.7,3.00959]
[1722430861388,2.20083685,3323.2,3322.6,1.3112362]
[1722430861389,2.20083685,3323.2,3322.8,3.00949]
[1722430861602,2.20083685,3323.2,3322.8,3.05842949]
[1722430861886,2.20083685,3323.3,3322.9,2.4204]
[1722430862107,2.20083685,3323.3,3323.0,3.55720295]
[1722430862258,2.20083685,3323.3,3323.1,0.04893949]
[1722430862606,2.59973852,3323.7,3323.1,0.04893949]
[1722430862607,2.20083685,3323.4,3323.1,0.04893949]
[1722430863053,3.00854,3323.9,3323.1,0.04893949]
[1722430863054,2.20083685,3323.5,3323.1,0.04893949]
[1722430863951,2.20194248,3323.3,3323.1,0.04893949]
[1722430864154,2.20194248,3323.2,3323.1,0.04893949]
[1722430864350,3.00901,3323.4,3322.4,7.28]
[1722430864351,3.00907,3323.3,3322.4,7.28]
[1722430864662,3.00907,3323.3,3322.4,10.28986]
[1722430864663,3.00914,3323.2,3322.4,10.28986]
[1722430864846,2.20180196,3322.9,3322.5,0.04861914]
[1722430865046,2.20180196,3322.8,3322.5,0.04861914]
[1722430865292,2.20180196,3322.9,3322.4,3.0098]
[1722430865497,2.20180196,3323.1,3322.7,3.00958]
[1722430865802,2.20180196,3323.2,3322.7,3.00955]
[1722430865950,2.1766654,3323.1,3322.8,0.04861914]
[1722430866151,2.60104456,3323.5,3322.8,0.04861914]
[1722430866398,2.60104456,3323.5,3322.8,3.05809914]
[1722430866898,5.60993456,3323.5,3322.8,0.04861914]
[1722430867100,3.00889,3323.5,3322.8,0.04861914]
[1722430867395,5.610644,3323.5,3322.8,0.91700917]
[1722430867595,2.601754,3323.5,3322.8,0.91700917]
[1722430868168,5.610674,3323.5,3322.8,0.91700917]
[1722430868401,5.610674,3323.5,3322.8,0.04861914]
[1722430868752,2.601754,3323.5,3322.8,0.04861914]
[1722430870263,3.00889,3323.5,3322.8,0.04861914]
[1722430870463,2.60282985,3323.5,3322.8,0.04861914]
[1722430870877,2.20355342,3323.2,3322.8,0.04861914]
[1722430871079,2.20355342,3323.1,3322.8,0.58139905]
[1722430871276,2.20355342,3323.1,3322.8,0.04861914]
[1722430871511,2.20355342,3322.9,3322.5,0.45546191]
[1722430871819,2.20355342,3323.0,3322.6,0.0486883]
[1722430872605,5.21291342,3323.0,3322.6,0.0486883]
[1722430872901,3.36013119,3322.9,3322.3,1.506]
[1722430873117,2.60282985,3322.8,3322.3,1.506]
[1722430873266,2.60282985,3322.8,3322.4,0.04708951]
[1722430873267,2.20325283,3322.5,3322.4,0.04708951]
[1722430873470,2.20322809,3322.5,3322.4,0.04708951]
[1722430874606,2.60256318,3322.9,3322.4,0.04708951]
[1722430874768,2.20292619,3322.5,3322.4,0.04708951]
[1722430874968,2.60256318,3322.7,3322.4,0.04708951]
[1722430875193,2.60256318,3322.8,3322.4,0.04708951]
[1722430875392,2.20288325,3322.5,3322.4,0.04708951]
[1722430876117,5.61203318,3322.9,3322.4,0.04708951]
[1722430876118,2.20288325,3322.6,3322.4,0.04708951]
[1722430876812,2.20227273,3322.6,3322.4,0.04708951]
[1722430877372,2.20227273,3322.5,3322.4,0.04708951]
[1722430878314,2.20227273,3322.6,3322.4,0.04708951]
[1722430878607,2.20141078,3322.6,3322.4,0.04708951]
[1722430878808,2.20141078,3322.7,3322.4,0.04708951]
[1722430879379,2.20141078,3322.8,3322.4,0.20239846]
[1722430879608,2.20141078,3322.6,3322.4,0.20239846]
[1722430879812,2.20141078,3322.8,3322.4,0.20239846]
[1722430879992,2.20069534,3322.8,3322.4,0.20239846]
[1722430880197,2.20074673,3322.8,3322.4,0.20239846]
[1722430880791,2.20074673,3322.7,3322.4,0.20239846]
[1722430881126,2.20074673,3322.8,3322.4,0.20239846]
[1722430881330,2.20051472,3322.8,3322.5,0.17083985]
[1722430881512,2.20051472,3322.8,3322.6,0.0474026]
[1722430881888,2.20051472,3322.8,3322.4,0.15530895]
[1722430882222,2.20051472,3322.8,3322.5,0.0474026]
[1722430882382,2.20051472,3322.9,3322.5,0.0474026]
[1722430882583,2.20051472,3322.9,3322.5,0.82025476]
[1722430882792,2.20051472,3322.9,3322.5,3.83002476]
[1722430883031,2.20051472,3322.9,3322.6,3.00969]
[1722430883235,2.20051472,3323.0,3322.5,0.82025476]
[1722430883414,2.20073378,3322.9,3322.4,0.15530895]
[1722430883619,2.271,3322.8,3322.6,0.0474026]
[1722430883933,5.28052,3322.8,3322.7,0.0474026]
[1722430884095,5.28052,3322.8,3322.3,1.506]
[1722430884283,5.28052,3322.8,3322.4,0.0474026]
[1722430884284,2.2004454,3322.5,3322.4,0.0474026]
[1722430886039,2.2004454,3322.6,3322.4,0.0474026]
[1722430886402,5.2101554,3322.6,3322.4,0.0474026]
[1722430886594,7.87963223,3322.8,3322.4,0.2474026]
[1722430886794,2.20035725,3322.6,3322.4,0.2474026]
[1722430887432,2.20035725,3322.5,3322.4,0.2474026]
[1722430888037,2.20035725,3322.6,3322.4,0.2474026]
[1722430889947,3.00936,3323.0,3322.4,0.2474026]
[1722430889948,2.20161748,3323.0,3322.7,3.00959]
[1722430890297,2.60066065,3323.3,3322.7,3.00959]
[1722430890298,2.20161748,3323.1,3322.8,0.04743903]
[1722430890554,2.20161748,3323.2,3322.8,0.92080293]
[1722430890853,2.20161748,3323.2,3322.8,0.98098646]
[1722430891047,5.60945065,3323.6,3322.8,3.99043646]
[1722430891048,2.20161748,3323.3,3322.8,3.99043646]
[1722430891340,2.20161748,3323.1,3322.8,0.92080293]
[1722430891834,2.20161748,3323.2,3322.8,0.92080293]
[1722430892036,2.20161748,3323.2,3322.9,0.39303929]
[1722430892545,2.20161748,3323.2,3323.0,0.04743903]
[1722430892902,2.20161748,3323.1,3323.0,0.04743903]
[1722430893107,2.20215093,3323.1,3322.8,0.8733639]
[1722430893309,2.20215093,3323.1,3322.9,0.04743903]
[1722430893735,3.00932,3323.0,3322.4,0.4]
[1722430893922,2.20181071,3322.8,3322.5,0.04743903]
[1722430894262,5.61065764,3322.9,3322.5,0.04743903]
[1722430894408,5.21153311,3322.6,3322.5,0.04743903]
[1722430894609,3.00969,3322.6,3322.5,0.04743903]
[1722430894813,3.00969,3322.6,3322.4,0.4]
[1722430894814,7.96271764,3322.6,3322.4,0.4]
[1722430895315,5.36149,3322.6,3322.4,0.6]
[1722430895874,2.2016144,3322.5,3322.4,0.6]
[1722430896048,3.00953,3322.8,3322.4,0.6]
[1722430896237,2.20161608,3322.5,3322.4,0.6]
[1722430896439,5.610189,3322.8,3322.4,0.6]
[1722430896620,2.20150699,3322.5,3322.4,0.6]
[1722430896950,2.20156327,3322.5,3322.4,0.6]
[1722430897653,3.00969,3322.6,3322.4,0.6]
[1722430898254,2.600659,3322.7,3322.4,0.6]
[1722430898761,2.20175575,3322.5,3322.4,0.6]
[1722430899419,2.201832,3322.5,3322.4,0.6]
[1722430900346,8.62003405,3322.8,3322.4,0.6]
[1722430900347,5.61062405,3322.6,3322.4,0.6]
[1722430900568,3.00971,3322.6,3322.4,0.6]
[1722430900962,2.60091405,3322.7,3322.4,0.6]
[1722430901260,2.20259158,3322.5,3322.4,0.6]
[1722430901766,2.20269647,3322.5,3322.4,0.6]
[1722430902789,2.20261925,3322.5,3322.4,0.6]
[1722430902991,5.34117,3323.0,3322.4,0.8106]
[1722430902992,2.20261925,3322.6,3322.4,0.8106]
[1722430903153,5.34117,3323.0,3322.4,0.8106]
[1722430903154,2.20261925,3322.7,3322.4,0.8106]
[1722430904353,2.20261925,3322.7,3322.5,0.04753006]
[1722430905749,7.94301399,3323.0,3322.5,0.04753006]
[1722430905750,3.00947,3322.9,3322.5,0.04753006]
[1722430905950,3.00947,3322.9,3322.4,0.6]
[1722430905951,3.00961,3322.7,3322.4,0.6]
[1722430906189,2.2036586,3322.5,3322.4,0.6]
[1722430906364,3.00978,3322.5,3322.4,0.6]
[1722430906567,5.2133934,3322.5,3322.4,0.6]
[1722430906766,3.00978,3322.5,3322.4,0.6]
[1722430906969,5.6126331,3322.7,3322.4,0.6]
[1722430907190,3.0096,3322.7,3322.4,0.6]
[1722430907373,8.51916,3322.5,3322.4,0.6]
[1722430907578,11.1221931,3322.5,3322.4,0.6]
[1722430908114,8.51916,3322.5,3322.4,0.6]
[1722430910607,11.12330102,3322.5,3322.4,0.6]
[1722430911104,8.51916,3322.5,3322.4,0.6]
[1722430911406,9.371076,3322.5,3322.4,0.6]
[1722430911577,12.50403327,3322.5,3322.4,0.6]
[1722430911781,9.371076,3322.5,3322.4,0.6]
[1722430913196,8.51916,3322.5,3322.4,0.6]
[1722430914335,3.13295727,3322.6,3322.4,0.6]
[1722430914336,3.0097,3322.6,3322.4,0.6]
[1722430914550,2.60397642,3322.5,3322.4,0.6]
[1722430914827,5.61367642,3322.6,3322.4,0.6]
[1722430915026,2.60397642,3322.6,3322.4,0.6]
[1722430915255,2.20478026,3322.5,3322.4,0.8106]
[1722430915379,5.27787,3323.0,3322.4,0.8106]
[1722430915589,2.20500863,3322.5,3322.4,0.8106]
[1722430916485,2.20500863,3322.6,3322.4,0.8106]
[1722430916684,2.60466644,3322.8,3322.5,0.23166]
[1722430917334,2.20576538,3322.7,3322.5,0.23166]
[1722430917545,2.20576538,3322.9,3322.5,0.23166]
[1722430918245,2.20576538,3323.0,3322.5,0.23166]